fUSD/lending_fUSD_20250622
["ID","MTS","AMOUNT","RATE_DAILY","PERIOD"]
[366903657,1750561854574,-2947.35,0.00019178,2]
[366903658,1750561854584,-490.0,0.00019178,2]
[366903659,1750561854594,-494.9181674,0.00019178,2]
[366903660,1750561854604,-490.0,0.00019178,2]
[366903661,1750561854616,-490.0,0.00019178,2]
[366903662,1750561854627,-1722.57,0.00019178,2]
[366903663,1750561854639,-490.0,0.00019178,2]
[366903664,1750561854651,-337.7212436,0.00019178,2]
[366903665,1750561854662,-1479.43,0.00019178,2]
[366903666,1750561854673,-3366.93,0.00019178,2]
[366903667,1750561854683,-2261.42,0.00019178,2]
[366903668,1750561854693,-1852.49,0.00019178,2]
[366903669,1750561854702,-652.37,0.00019178,2]
[366903670,1750561854713,-490.0,0.00019178,2]
[366903671,1750561854723,-490.0,0.00019178,2]
[366903672,1750561854733,-490.0,0.00019178,2]
[366903673,1750561854744,-1858.98,0.00019178,2]
[366903674,1750561854754,-490.0,0.00019178,2]
[366903675,1750561854763,-1222.34,0.00019178,2]
[366903676,1750561854773,-3396.05,0.00019178,2]
[366903677,1750561854784,-490.0,0.00019178,2]
[366903678,1750561854795,-490.0,0.00019178,2]
[366903679,1750561854805,-490.0,0.00019178,2]
[366903680,1750561854816,-490.0,0.00019178,2]
[366903681,1750561854826,-1789.65,0.00019178,2]
[366903682,1750561854836,-308.31302982,0.00019178,2]
[366903683,1750561854846,-718.02,0.00019178,2]
[366903684,1750561854856,-14662.99,0.00019178,2]
[366903685,1750561854866,-621.94,0.00019178,2]
[366903686,1750561854876,-490.0,0.00019178,2]
[366903687,1750561854886,-151.0,0.00019178,2]
[366903688,1750561854897,-151.0,0.00019178,2]
[366903689,1750561854907,-765.681044,0.00019178,2]
[366903690,1750561854917,-151.0,0.00019178,2]
[366903691,1750561854927,-151.0,0.00019178,2]
[366903692,1750561854937,-490.0,0.00019178,2]
[366903693,1750561854947,-765.681044,0.00019178,2]
[366903694,1750561854958,-621.94640211,0.00019178,2]
[366903695,1750561854968,-1950.2,0.00019178,2]
[366903696,1750561854978,-193.17235938,0.00019178,2]
[366903697,1750561854988,-2135.77,0.00019178,2]
[366903698,1750561854999,-627.07,0.00019178,2]
[366903699,1750561855011,-1609.75,0.00019178,2]
[366903700,1750561855020,-490.0,0.00019178,2]
[366903701,1750561855032,-151.0,0.00019178,2]
[366903702,1750561855042,-492.59539473,0.00019178,2]
[366903703,1750561855052,-151.0,0.00019178,2]
[366903704,1750561855064,-490.0,0.00019178,2]
[366903705,1750561855074,-490.0,0.00019178,2]
[366903706,1750561855083,-151.0,0.00019178,2]
[366903707,1750561855093,-151.0,0.00019178,2]
[366903708,1750561855103,-490.0,0.00019178,2]
[366903709,1750561855114,-490.0,0.00019178,2]
[366903710,1750561855123,-490.0,0.00019178,2]
[366903711,1750561855133,-490.0,0.00019178,2]
[366903712,1750561855142,-13293.25,0.00019178,2]
[366903713,1750561855152,-1529.92,0.00019178,2]
[366903714,1750561855162,-490.0,0.00019178,2]
[366903715,1750561855171,-1693.09,0.00019178,2]
[366903716,1750561855180,-490.0,0.00019178,2]
[366903717,1750561855190,-765.681044,0.00019178,2]
[366903718,1750561855199,-765.681044,0.00019178,2]
[366903719,1750561855209,-490.0,0.00019178,2]
[366903720,1750561855219,-490.0,0.00019178,2]
[366903721,1750561855229,-490.0,0.00019178,2]
[366903722,1750561855239,-16972.73,0.00019178,2]
[366903723,1750561855250,-490.0,0.00019178,2]
[366903724,1750561855259,-490.0,0.00019178,2]
[366903725,1750561855270,-490.0,0.00019178,2]
[366903726,1750561855280,-1739.01,0.00019178,2]
[366903727,1750561855290,-970.49,0.00019178,2]
[366903728,1750561855300,-27523.55,0.00019178,2]
[366903729,1750561855311,-3216.35,0.00019178,2]
[366903730,1750561855321,-490.0,0.00019178,2]
[366903731,1750561855331,-491.40251416,0.00019178,2]
[366903732,1750561855340,-1731.24,0.00019178,2]
[366903733,1750561855350,-2320.62,0.00019178,2]
[366903734,1750561855359,-490.0,0.00019178,2]
[366903735,1750561855369,-490.0,0.00019178,2]
[366903736,1750561855378,-594.3,0.00019178,2]
[366903737,1750561855388,-562.77,0.00019178,2]
[366903738,1750561855398,-490.0,0.00019178,2]
[366903739,1750561855408,-676.24,0.00019178,2]
[366903740,1750561855422,-676.24,0.00019178,2]
[366903741,1750561855431,-411.21747165,0.00019178,2]
[366903742,1750561855441,-676.24,0.00019178,2]
[366903743,1750561855451,-676.24,0.00019178,2]
[366903744,1750561855462,-2689.35,0.00019178,2]
[366903745,1750561855472,-676.24,0.00019178,2]
[366903746,1750561855482,-490.0,0.00019178,2]
[366903747,1750561855492,-490.0,0.00019178,2]
[366903748,1750561855502,-490.0,0.00019178,2]
[366903749,1750561855512,-490.0,0.00019178,2]
[366903750,1750561855522,-823.93,0.00019178,2]
[366903751,1750561855531,-874.98,0.00019178,2]
[366903752,1750561855541,-1953.88,0.00019178,2]
[366903753,1750561855551,-1471.2,0.00019178,2]
[366903754,1750561855563,-2041.1,0.00019178,2]
[366903755,1750561855572,-3302.07,0.00019178,2]
[366903756,1750561855582,-3433.72,0.00019178,2]
[366903757,1750561855592,-490.0,0.00019178,2]
[366903758,1750561855602,-490.0,0.00019178,2]
[366903759,1750561855614,-5898.99,0.00019178,2]
[366903760,1750561855625,-2761.28,0.00019178,2]
[366903761,1750561855635,-4729.3,0.00019178,2]
[366903762,1750561855645,-1997.59,0.00019178,2]
[366903763,1750561855656,-490.0,0.00019178,2]
[366903764,1750561855667,-1721.55,0.00019178,2]
[366903765,1750561855677,-684.57,0.00019178,2]
[366903766,1750561855688,-151.0,0.00019178,2]
[366903767,1750561855698,-1304.47,0.00019178,2]
[366903768,1750561855708,-153.164691,0.00019178,2]
[366903769,1750561855718,-490.0,0.00019178,2]
[366903770,1750561855728,-490.0,0.00019178,2]
[366903771,1750561855739,-490.0,0.00019178,2]
[366903772,1750561855750,-781.14,0.00019178,2]
[366903773,1750561855760,-2153.21,0.00019178,2]
[366903774,1750561855770,-2963.43,0.00019178,2]
[366903775,1750561855780,-9836.66,0.00019178,2]
[366903776,1750561855790,-490.0,0.00019178,2]
[366903777,1750561855800,-490.0,0.00019178,2]
[366903778,1750561855811,-490.0,0.00019178,2]
[366903779,1750561855821,-1202.5,0.00019178,2]
[366903780,1750561855831,-490.0,0.00019178,2]
[366903781,1750561855842,-651.59,0.00019178,2]
[366903782,1750561855852,-651.59,0.00019178,2]
[366903783,1750561855862,-651.59,0.00019178,2]
[366903784,1750561855872,-490.0,0.00019178,2]
[366903785,1750561855882,-651.59,0.00019178,2]
[366903786,1750561855892,-490.0,0.00019178,2]
[366903787,1750561855903,-490.0,0.00019178,2]
[366903788,1750561855913,-1602.87,0.00019178,2]
[366903789,1750561855923,-651.59,0.00019178,2]
[366903790,1750561855932,-651.59,0.00019178,2]
[366903791,1750561855942,-651.59,0.00019178,2]
[366903792,1750561855952,-490.0,0.00019178,2]
[366903793,1750561855962,-651.59,0.00019178,2]
[366903794,1750561855972,-651.59,0.00019178,2]
[366903795,1750561855982,-651.59,0.00019178,2]
[366903796,1750561855993,-490.0,0.00019178,2]
[366903797,1750561856003,-490.0,0.00019178,2]
[366903798,1750561856015,-500.0,0.00019178,2]
[366903799,1750561856026,-4259.13,0.00019178,2]
[366903800,1750561856037,-500.0,0.00019178,2]
[366903801,1750561856047,-500.0,0.00019178,2]
[366903802,1750561856057,-500.0,0.00019178,2]
[366903803,1750561856067,-500.0,0.00019178,2]
[366903804,1750561856077,-615.21,0.00019178,2]
[366903805,1750561856087,-490.0,0.00019178,2]
[366903806,1750561856097,-500.0,0.00019178,2]
[366903807,1750561856107,-2657.37,0.00019178,2]
[366903808,1750561856117,-490.0,0.00019178,2]
[366903809,1750561856127,-500.0,0.00019178,2]
[366903810,1750561856137,-490.0,0.00019178,2]
[366903811,1750561856147,-500.0,0.00019178,2]
[366903812,1750561856158,-500.0,0.00019178,2]
[366903813,1750561856168,-814.55,0.00019178,2]
[366903814,1750561856177,-1745.44,0.00019178,2]
[366903815,1750561856187,-1049.86,0.00019178,2]
[366903816,1750561856197,-490.0,0.00019178,2]
[366903817,1750561856207,-500.0,0.00019178,2]
[366903818,1750561856217,-490.0,0.00019178,2]
[366903819,1750561856227,-292.55554035,0.00019178,2]
[366903820,1750561856237,-793.36,0.00019178,2]
[366903821,1750561856247,-936.73,0.00019178,2]
[366903822,1750561856257,-490.0,0.00019178,2]
[366903823,1750561856267,-785.15,0.00019178,2]
[366903824,1750561856277,-851.83,0.00019178,2]
[366903825,1750561856287,-5397.06,0.00019178,2]
[366903826,1750561856297,-3996.74,0.00019178,2]
[366903827,1750561856309,-490.0,0.00019178,2]
[366903828,1750561856319,-490.0,0.00019178,2]
[366903829,1750561856329,-11657.31,0.00019178,2]
[366903830,1750561856339,-1527.4,0.00019178,2]
[366903831,1750561856349,-490.0,0.00019178,2]
[366903832,1750561856359,-2245.54,0.00019178,2]
[366903833,1750561856369,-2533.35,0.00019178,2]
[366903834,1750561856380,-500.0,0.00019178,2]
[366903835,1750561856391,-4536.81,0.00019178,2]
[366903836,1750561856401,-500.0,0.00019178,2]
[366903837,1750561856414,-500.0,0.00019178,2]
[366903838,1750561856426,-500.0,0.00019178,2]
[366903839,1750561856436,-3448.53,0.00019178,2]
[366903840,1750561856447,-500.0,0.00019178,2]
[366903841,1750561856459,-490.0,0.00019178,2]
[366903842,1750561856469,-1852.73,0.00019178,2]
[366903843,1750561856479,-309.24662294,0.00019178,2]
[366903844,1750561856493,-511.1,0.00019178,2]
[366903845,1750561856505,-500.0,0.00019178,2]
[366903846,1750561856515,-4374.93,0.00019178,2]
[366903847,1750561856525,-150.0,0.00019178,2]
[366903848,1750561856536,-544.14,0.00019178,2]
[366903849,1750561856547,-1812.44,0.00019178,2]
[366903850,1750561856556,-490.0,0.00019178,2]
[366903851,1750561856566,-2375.15,0.00019178,2]
[366903852,1750561856576,-496.4349223,0.00019178,2]
[366903853,1750561856585,-2390.29,0.00019178,2]
[366903854,1750561856595,-490.0,0.00019178,2]
[366903855,1750561856605,-492.01847776,0.00019178,2]
[366903856,1750561856852,-1966.77,0.00019178,2]
[366903857,1750561856895,-490.0,0.00019178,2]
[366903858,1750561856905,-490.0,0.00019178,2]
[366903859,1750561856915,-490.0,0.00019178,2]
[366903860,1750561856925,-490.0,0.00019178,2]
[366903861,1750561856935,-490.0,0.00019178,2]
[366903862,1750561856945,-775.91,0.00019178,2]
[366903863,1750561856954,-4440.03,0.00019178,2]
[366903864,1750561856964,-2692.63,0.00019178,2]
[366903865,1750561856974,-490.0,0.00019178,2]
[366903866,1750561856984,-490.0,0.00019178,2]
[366903867,1750561856994,-1157.35,0.00019178,2]
[366903868,1750561857003,-666.0,0.00019178,2]
[366903869,1750561857013,-171.45,0.00019178,2]
[366903870,1750561857024,-192594.33363285,0.00019178,2]
[366903871,1750561857034,-151.0,0.00019178,2]
[366903872,1750561857044,-151.0,0.00019178,2]
[366903873,1750561857054,-151.0,0.00019178,2]
[366903874,1750561857064,-151.0,0.00019178,2]
[366903875,1750561857074,-744.25880383,0.00019178,2]
[366903876,1750561857084,-500.0,0.00019205,2]
[366903877,1750561857094,-8127.63071721,0.00019223,2]
[366903878,1750561857103,-502.32051416,0.00019233,2]
[366903879,1750561857113,-150.0,0.00019233,2]
[366903880,1750561857123,-1828.0,0.0001924,2]
[366903881,1750561857137,-1127.0,0.0001924,2]
[366903882,1750561857147,-651.59,0.0001926,2]
[366903883,1750561857159,-500.0,0.0001926,2]
[366903884,1750561857169,-8127.63071721,0.00019303,2]
[366903885,1750561857179,-150.0,0.00019309,2]
[366903886,1750561857189,-217.63833224,0.00019316,2]
[366903887,1750561857199,-1995.0,0.00019336,2]
[366903888,1750561857208,-159.83601973,0.00019352,2]
[366903889,1750561857219,-255.41984092,0.00019352,2]
[366903890,1750561857228,-360.65897195,0.00019352,2]
[366903891,1750561857239,-164.42141278,0.00019352,3]
[366903892,1750561857248,-162.35736245,0.00019352,2]
[366903893,1750561857259,-3690.05391315,0.00019355,2]
[366903894,1750561857268,-151.0,0.00019382,2]
[366903895,1750561857279,-151.0,0.00019382,2]
[366903896,1750561857289,-765.681044,0.00019382,2]
[366903897,1750561857299,-151.0,0.00019382,2]
[366903898,1750561857310,-765.681044,0.00019382,2]
[366903899,1750561857320,-8127.63071721,0.00019384,2]
[366903900,1750561857329,-150.0,0.00019422,2]
[366903901,1750561857340,-394.0,0.00019425,2]
[366903902,1750561857351,-1665.26,0.00019426,2]
[366903903,1750561857361,-288.12929169,0.00019442,2]
[366903904,1750561857371,-5424519.18935849,0.00019444,3]
[366903905,1750561858213,-28322.17310277,0.00019444,3]
[366903906,1750561858226,-747.48428234,0.00019444,3]
[366903907,1750561859373,-151.0,0.00018294,2]
[366903908,1750561859383,-490.0,0.00019178,2]
[366903909,1750561859392,-1034.52337845,0.00019444,3]
[366903910,1750561859450,-456.26358887,0.00019444,3]
[366903911,1750561859499,-11333.11468674,0.00019444,3]
[366903912,1750561860248,-490.0,0.00019178,2]
[366903913,1750561860258,-490.0,0.00019178,2]
[366903914,1750561860268,-672.63,0.00019178,2]
[366903915,1750561860278,-19926.70500233,0.00019444,3]
[366903916,1750561860343,-14911.14948408,0.00019444,3]
[366903917,1750561860463,-1738.31104271,0.00019444,3]
[366903918,1750561861680,-490.0,0.00019178,2]
[366903919,1750561861690,-490.0,0.00019178,2]
[366903920,1750561861700,-151.0,0.00019178,2]
[366903921,1750561861710,-490.0,0.00019178,2]
[366903922,1750561861720,-151.0,0.00019178,2]
[366903923,1750561861731,-1424.99181615,0.00019444,3]
[366903924,1750561861905,-369.25753555,0.00019444,3]
[366903925,1750562029246,250.0,0.00015,2]
[366903926,1750562171881,202.0,0.00017196,2]
[366903927,1750562195131,160.29763773,0.00021671,30]
[366903928,1750562195347,160.29763773,0.00021808,30]
[366903929,1750562195791,160.29763773,0.00021973,30]
[366903930,1750562532295,202.0,0.00017533,2]
[366903932,1750562614373,156.74,0.00013699,2]
[366903933,1750562622757,202.0,0.00017533,2]
[366903935,1750562706563,177.72143689,0.00017507,2]
[366903936,1750562706601,160.40531067,0.00017507,2]
[366903937,1750562707693,222.8142184,0.00017507,2]
[366903950,1750562865711,187.46,0.00016712,2]
[366903951,1750562891882,202.0,0.00017903,2]
[366903952,1750562919460,124668.54650904,0.000151,2]
[366903953,1750562919489,70000.0,0.000151,2]
[366903954,1750562919516,111076.36806647,0.000151,2]
[366903971,1750563031960,-1000.0,0.00017806,2]
[366903972,1750563031971,-246.17593611,0.00018021,2]
[366903973,1750563031981,-116.22424389,0.00018049,2]
[366903974,1750563031997,-850.0,0.00018049,2]
[366903975,1750563032014,-886.19575611,0.00018049,2]
[366903976,1750563032024,-762.89376022,0.0001821,2]
[366903977,1750563032034,-301.66,0.00018221,2]
[366903978,1750563032044,-300.0,0.00018222,2]
[366903979,1750563032054,-1200.0,0.00018222,2]
[366903980,1750563032064,-649.25048367,0.00018223,2]
[366904041,1750563037819,-458.82327846,0.00018223,2]
[366904042,1750563037831,-428.15974884,0.00018223,2]
[366904065,1750563040092,-22363.76648903,0.00018223,2]
[366904066,1750563040103,-977.92,0.00018248,2]
[366904067,1750563040113,-13323.89,0.00018303,2]
[366904068,1750563040123,-302.0,0.00018318,2]
[366904069,1750563040132,-161.72,0.00018318,2]
[366904070,1750563040142,-150.0,0.00018325,2]
[366904071,1750563040151,-150.0,0.00018418,2]
[366904072,1750563040161,-1000.0,0.00018542,2]
[366904073,1750563040171,-762.89376022,0.00018554,2]
[366904074,1750563040181,-164.01,0.0001859,2]
[366904075,1750563040190,-400.0,0.000186,6]
[366904076,1750563040199,-762.89376022,0.00018678,2]
[366904077,1750563040209,-500.0,0.00018685,2]
[366904078,1750563040218,-800.0,0.000187,6]
[366904079,1750563040227,-555.0,0.000187,2]
[366904080,1750563040237,-2642.21907755,0.00018701,2]
[366904090,1750563044658,-202.0,0.00017903,2]
[366904091,1750563044668,-118.96167396,0.00018701,2]
[366904097,1750563587626,500.0,0.00024658,120]
[366904098,1750563612638,202.0,0.00017179,2]
[366904099,1750563634478,157.12,0.00013699,2]
[366904102,1750563761723,202.0,0.00017179,2]
[366904104,1750563791427,203.0,0.00017179,2]
[366904105,1750563883519,530.0,0.00022,30]
[366904106,1750563972132,202.0,0.00017305,2]
[366904107,1750564012185,320.96167396,0.00017358,2]
[366904129,1750564232469,-150.0,0.00017458,2]
[366904130,1750564232982,-150.0,0.00017458,2]
[366904131,1750564232992,-150.0,0.00017458,2]
[366904132,1750564233001,-150.00000001,0.00017458,2]
[366904133,1750564233011,-150.0,0.00017458,2]
[366904134,1750564233022,-150.0,0.00017458,2]
[366904135,1750564233032,-150.0,0.00017458,2]
[366904136,1750564233042,-40394.61,0.00017626,2]
[366904137,1750564233052,-150.83,0.00017642,2]
[366904138,1750564233062,-154.11,0.00017756,2]
[366904139,1750564233072,-154.11,0.00017786,2]
[366904140,1750564233083,-154.11,0.00017815,2]
[366904141,1750564233094,-1200.0,0.00017822,2]
[366904142,1750564233105,-1000.0,0.00017823,2]
[366904143,1750564233115,-154.11,0.00017845,2]
[366904144,1750564233127,-300.0,0.00017912,2]
[366904145,1750564233137,-300.0,0.00017912,2]
[366904146,1750564233146,-3043.41,0.00017913,2]
[366904147,1750564233157,-150.0,0.00017942,2]
[366904148,1750564233167,-150.0,0.00017942,2]
[366904149,1750564233178,-150.0,0.0001797,2]
[366904150,1750564233188,-257.23,0.00017975,2]
[366904151,1750564233198,-16359.55089235,0.00017976,2]
[366904152,1750564233211,-7540.44910765,0.00017976,2]
[366904153,1750564233221,-400.0,0.00018,2]
[366904154,1750564233232,-1003.29927937,0.00018009,2]
[366904155,1750564233242,-2261.15,0.0001801,2]
[366904156,1750564233252,-7241.21,0.0001801,2]
[366904157,1750564233262,-719.0,0.00018145,2]
[366904158,1750564233272,-1044.0,0.00018158,2]
[366904159,1750564233281,-382.0,0.00018169,2]
[366904160,1750564233292,-184.0,0.00018172,2]
[366904161,1750564233302,-160.0,0.00018188,2]
[366904162,1750564233312,-1034.0,0.00018217,2]
[366904163,1750564233323,-280.0,0.00018217,2]
[366904164,1750564233333,-410.0,0.00018236,2]
[366904165,1750564233344,-1896.0,0.00018307,2]
[366904166,1750564233354,-150.0,0.00018387,2]
[366904167,1750564233364,-150.0,0.00018427,2]
[366904168,1750564233374,-150.0,0.00018427,2]
[366904169,1750564233385,-150.0,0.00018427,2]
[366904170,1750564233396,-150.0,0.00018427,2]
[366904171,1750564233407,-166.96,0.00018428,2]
[366904172,1750564233417,-150.0,0.00018447,2]
[366904173,1750564233428,-202.0,0.00018459,3]
[366904174,1750564233438,-762.89376023,0.00018481,2]
[366904175,1750564233448,-910.86,0.000185,2]
[366904176,1750564233459,-300.0,0.000185,6]
[366904177,1750564233469,-206.0,0.00018505,2]
[366904178,1750564233478,-700.0,0.000186,6]
[366904179,1750564233488,-668.0,0.00018624,2]
[366904180,1750564233498,-350.0,0.00018682,2]
[366904181,1750564233508,-185.31391741,0.00018682,2]
[366904182,1750564233518,-1100.0,0.000187,6]
[366904183,1750564233527,-952.41763,0.00018701,2]
[366904184,1750564233537,-1500.0,0.000188,6]
[366904185,1750564233547,-594.77,0.00018878,2]
[366904186,1750564233557,-154.15389316,0.000189,2]
[366904187,1750564233567,-1419.99409956,0.000189,2]
[366904188,1750564233576,-1900.0,0.000189,6]
[366904189,1750564233586,-150.0,0.00018912,2]
[366904190,1750564233595,-150.0,0.00018912,2]
[366904191,1750564233606,-952.41764,0.0001892,2]
[366904192,1750564233616,-4026.46082453,0.00019,2]
[366904193,1750564233625,-2000.0,0.00019,2]
[366904194,1750564233635,-2000.0,0.00019,2]
[366904195,1750564233646,-2000.0,0.00019,2]
[366904196,1750564233656,-2000.0,0.00019,2]
[366904197,1750564233665,-2000.0,0.00019,2]
[366904198,1750564233676,-2000.0,0.00019,2]
[366904199,1750564233687,-2000.0,0.00019,2]
[366904200,1750564233696,-2000.0,0.00019,2]
[366904201,1750564233706,-2000.0,0.00019,2]
[366904202,1750564233716,-2000.0,0.00019,2]
[366904203,1750564233726,-259.50034818,0.00019078,2]
[366904204,1750564233736,-320.64453685,0.00019078,2]
[366904205,1750564233746,-15126.20628326,0.00019078,2]
[366904206,1750564233757,-220.80766889,0.00019078,2]
[366904207,1750564233767,-6548.77059252,0.00019078,2]
[366904208,1750564233776,-347.47245017,0.00019078,2]
[366904209,1750564233786,-594.73,0.000191,2]
[366904210,1750564233796,-150.0,0.00019102,2]
[366904211,1750564233806,-159.70718599,0.00019108,2]
[366904212,1750564233816,-500.0,0.00019108,2]
[366904213,1750564233826,-500.0,0.00019108,2]
[366904214,1750564233836,-150.0,0.00019108,2]
[366904215,1750564233846,-150.0,0.00019108,2]
[366904216,1750564233856,-500.0,0.00019108,2]
[366904217,1750564233868,-150.0,0.00019108,2]
[366904218,1750564233878,-500.0,0.00019108,2]
[366904219,1750564233888,-15126.20628323,0.00019108,2]
[366904220,1750564233899,-6548.77059251,0.00019108,2]
[366904221,1750564233909,-270.15,0.00019129,3]
[366904222,1750564233923,-500.0,0.00019135,2]
[366904223,1750564233935,-500.0,0.00019135,2]
[366904224,1750564233945,-154.58070705,0.00019135,2]
[366904225,1750564233955,-166.6679119,0.00019135,2]
[366904226,1750564233966,-502.01282661,0.00019135,2]
[366904227,1750564233976,-150.54758464,0.00019135,2]
[366904228,1750564233986,-500.89647196,0.00019135,2]
[366904229,1750564233996,-15126.20628323,0.00019139,2]
[366904230,1750564234007,-6548.77059251,0.00019139,2]
[366904231,1750564234017,-390.05991646,0.00019151,2]
[366904232,1750564234044,-3.94008354,0.00019151,2]
[366904233,1750564234054,-1189.46,0.0001916,2]
[366904234,1750564234064,-500.0,0.00019163,2]
[366904235,1750564234074,-500.0,0.00019163,2]
[366904236,1750564234088,-288.12929169,0.00019168,2]
[366904237,1750564234098,-15126.20628323,0.00019169,2]
[366904238,1750564234108,-2359.6268483,0.00019169,2]
[366904241,1750564237840,-4189.14374421,0.00019169,2]
[366904242,1750564237850,-406562.00812229,0.0001917,2]
[366904243,1750564237860,-1180803.1232335,0.0001917,2]
[366904244,1750564237870,-502.11049873,0.00019173,2]
[366904245,1750564237880,-614.40791395,0.00019173,2]
[366904246,1750564237889,-500.0,0.00019173,2]
[366904247,1750564237899,-503.97493171,0.00019173,2]
[366904248,1750564237908,-518.59321493,0.00019173,2]
[366904249,1750564237918,-500.0,0.00019173,2]
[366904250,1750564237929,-500.0,0.00019173,2]
[366904251,1750564237938,-502.67025398,0.00019173,2]
[366904252,1750564237948,-502.2076647,0.00019173,2]
[366904253,1750564237958,-500.0,0.00019173,2]
[366904254,1750564237968,-500.0,0.00019173,2]
[366904255,1750564237977,-150.0,0.00019173,2]
[366904256,1750564237987,-500.0,0.00019173,2]
[366904257,1750564237997,-150.0,0.00019173,2]
[366904258,1750564238005,-1065.9957167,0.00019176,5]
[366904259,1750564238014,-253.902,0.00019177,2]
[366904260,1750564238024,-1065.99571669,0.00019177,5]
[366904261,1750564238033,-1184.77753179,0.00019177,5]
[366904262,1750564238043,-1184.7775318,0.00019177,5]
[366904263,1750564238053,-203.51,0.00019177,2]
[366904264,1750564238063,-357.4029411,0.00019177,2]
[366904265,1750564238073,-208.20883007,0.00019177,2]
[366904266,1750564238087,-586.9630796,0.00019177,2]
[366904267,1750564238096,-500.0,0.00019177,2]
[366904268,1750564238106,-276.27792565,0.00019177,2]
[366904269,1750564238116,-500.0,0.00019177,2]
[366904270,1750564238127,-500.0,0.00019177,2]
[366904271,1750564238136,-500.0,0.00019177,2]
[366904272,1750564238146,-410.16558504,0.00019177,2]
[366904273,1750564238156,-500.0,0.00019177,2]
[366904275,1750564238173,-500.0,0.00019177,2]
[366904277,1750564238185,-232.92810787,0.00019177,2]
[366904280,1750564238196,-150.0,0.00019177,2]
[366904281,1750564238206,-150.0,0.00019177,2]
[366904283,1750564238216,-150.0,0.00019177,2]
[366904286,1750564238227,-396.85002609,0.00019177,2]
[366904288,1750564238236,-500.0,0.00019177,2]
[366904289,1750564238246,-188.5405112,0.00019177,2]
[366904292,1750564238256,-180.57706643,0.00019177,2]
[366904294,1750564238266,-164.92974,0.00019178,2]
[366904296,1750564238276,-151.0,0.00019178,2]
[366904298,1750564238285,-151.0,0.00019178,2]
[366904300,1750564238294,-151.0,0.00019178,2]
[366904301,1750564238303,-151.0,0.00019178,2]
[366904303,1750564238313,-500.0,0.00019178,2]
[366904306,1750564238322,-593.47738946,0.00019178,2]
[366904307,1750564238332,-151.0,0.00019178,2]
[366904309,1750564238342,-151.611835,0.00019178,2]
[366904312,1750564238353,-151.0,0.00019178,2]
[366904314,1750564238362,-151.0,0.00019178,2]
[366904316,1750564238371,-151.0,0.00019178,2]
[366904318,1750564238381,-151.760227,0.00019178,2]
[366904320,1750564238391,-4162.362338,0.00019178,2]
[366904322,1750564238400,-150.501045,0.00019178,2]
[366904324,1750564238409,-224.000891,0.00019178,2]
[366904326,1750564238418,-3357.035537,0.00019178,2]
[366904327,1750564238431,-9709.644683,0.00019178,2]
[366904329,1750564238440,-795.24374015,0.00019178,2]
[366904331,1750564238449,-795.24374015,0.00019178,2]
[366904333,1750564238459,-795.24374015,0.00019178,2]
[366904335,1750564238468,-795.24374015,0.00019178,2]
[366904337,1750564238478,-795.24374015,0.00019178,2]
[366904339,1750564238487,-795.24374015,0.00019178,2]
[366904341,1750564238496,-795.24374015,0.00019178,2]
[366904343,1750564238505,-795.24374015,0.00019178,2]